[Event "44th Chess Olympiad Women 2022"]
[Site "Chennai"]
[Date "2022.08.06"]
[Round "8.34"]
[White "Morales Flores, Monserrat"]
[Black "Kannappan, Sigappi"]
[Result "1-0"]
[WhiteElo "1946"]
[BlackElo "1914"]
[Annotator "NA RC"]
[PlyCount "77"]
[EventDate "2022.??.??"]
[TimeControl "60"]

1. e4 {[%emt 0:00:07]} c5 {[%emt 0:00:20]} 2. Nf3 {[%emt 0:00:16]} d6 {[%emt 0:
00:00]} 3. d4 {[%emt 0:00:11]} cxd4 {[%emt 0:00:04]} 4. Nxd4 {[%emt 0:00:05]}
Nf6 {[%emt 0:00:07]} 5. Nc3 {[%emt 0:00:04]} a6 {[%emt 0:00:06]} 6. Be2 {
[%emt 0:00:46]} e5 {[%emt 0:00:09]} 7. Nf3 {[%emt 0:00:21]} h6 {[%emt 0:00:06]}
8. Nd2 {[%emt 0:00:16]} Be6 {[%emt 0:00:09]} 9. Nc4 {[%emt 0:00:29]} b5 {
[%emt 0:00:07]} 10. Ne3 {[%emt 0:00:15]} Nbd7 {[%emt 0:00:11]} 11. a4 {[%emt 0:
00:00]} b4 {[%emt 0:00:56]} 12. Ncd5 {[%emt 0:00:26]} a5 {[%emt 0:00:15]} 13.
O-O {[%emt 0:08:29]} Be7 {[%emt 0:01:14]} 14. Nxf6+ {[%emt 0:06:04]} Nxf6 {
[%emt 0:04:14]} 15. Bb5+ {[%emt 0:03:46]} Nd7 {[%emt 0:22:20]} 16. c3 {[%emt 0:
00:00]} bxc3 {[%emt 0:01:35]} 17. bxc3 {[%emt 0:00:22]} O-O {[%emt 0:00:17]}
18. Ba3 {[%emt 0:01:53]} Nf6 {[%emt 0:14:11]} 19. Qf3 {[%emt 0:04:27]} Qc7 {
[%emt 0:08:19]} 20. c4 {[%emt 0:05:18]} Rfd8 {[%emt 0:07:08]} 21. Nd5 {[%emt 0:
00:00]} Nxd5 {[%emt 0:12:04]} 22. cxd5 {[%emt 0:01:25]} Bd7 {[%emt 0:00:37]}
23. Rac1 {[%emt 0:03:19]} Qb6 {[%emt 0:03:53]} 24. Bxd7 {[%emt 0:01:47]} Rxd7 {
[%emt 0:00:01]} 25. Rc6 {[%emt 0:00:07]} Qb7 {[%emt 0:13:17]} 26. Qc3 {[%emt 0:
00:00]} g6 {[%emt 0:04:44]} 27. g3 {[%emt 0:01:01]} Ra7 {[%emt 0:02:18]} 28.
Rc1 {[%emt 0:01:19]} Kh7 {[%emt 0:00:50]} 29. h4 {[%emt 0:00:51]} h5 {[%emt 0:
00:00]} 30. Kg2 {[%emt 0:00:44]} Qb8 {[%emt 0:01:33]} 31. Rc2 {[%emt 0:03:04]}
Rab7 {[%emt 0:00:54]} 32. Rc8 {[%emt 0:01:03]} Qa7 {[%emt 0:00:04]} 33. Qf3 {
[%emt 0:01:37]} Bd8 {[%emt 0:00:19]} 34. R2c6 {[%emt 0:01:47]} Rb6 {[%emt 0:00:
00]} 35. Bc1 {[%emt 0:00:43]} Qb7 {[%emt 0:00:29]} 36. Rxd8 {[%emt 0:01:39]}
Rxd8 {[%emt 0:00:29]} 37. Rxb6 {[%emt 0:00:05]} Qxb6 {[%emt 0:00:44]} 38. Qxf7+
{[%emt 0:00:06]} Kh8 {[%emt 0:00:22]} 39. Bg5 {[%emt 0:00:17]} 1-0

[Event "44th Chess Olympiad Women 2022"]
[Site "Chennai"]
[Date "2022.08.06"]
[Round "8.34"]
[White "Toro Pradenas, Maria Jose"]
[Black "Lam, Ka Yan"]
[Result "1-0"]
[WhiteElo "1945"]
[BlackElo "1223"]
[Annotator "NA RC"]
[PlyCount "87"]
[EventDate "2022.??.??"]
[TimeControl "60"]

1. e4 {[%emt 0:00:02]} e5 {[%emt 0:00:08]} 2. Nf3 {[%emt 0:00:06]} Nf6 {
[%emt 0:00:12]} 3. d4 {[%emt 0:00:11]} d5 {[%emt 0:07:42]} 4. dxe5 {[%emt 0:00:
00]} Nxe4 {[%emt 0:01:24]} 5. Bd3 {[%emt 0:00:13]} Be7 {[%emt 0:04:29]} 6. O-O
{[%emt 0:08:53]} O-O {[%emt 0:02:30]} 7. c4 {[%emt 0:15:47]} Be6 {[%emt 0:00:
00]} 8. Qc2 {[%emt 0:02:11]} f5 {[%emt 0:19:52]} 9. exf6 {[%emt 0:03:04]} Rxf6
{[%emt 0:02:59]} 10. Ng5 {[%emt 0:11:52]} Bf5 {[%emt 0:07:27]} 11. cxd5 {
[%emt 0:09:10]} Nxg5 {[%emt 0:03:34]} 12. Bxg5 {[%emt 0:12:04]} Bxd3 {[%emt 0:
00:00]} 13. Qxd3 {[%emt 0:03:28]} Rg6 {[%emt 0:04:49]} 14. Bxe7 {[%emt 0:01:35]
} Qxe7 {[%emt 0:00:05]} 15. Nc3 {[%emt 0:01:35]} Qg5 {[%emt 0:04:04]} 16. Qe4 {
[%emt 0:06:27]} Nd7 {[%emt 0:01:13]} 17. f4 {[%emt 0:00:14]} Qf6 {[%emt 0:00:
00]} 18. f5 {[%emt 0:00:36]} Rg5 {[%emt 0:02:46]} 19. Qe6+ {[%emt 0:02:02]} Qf7
{[%emt 0:02:48]} 20. Nb5 {[%emt 0:04:05]} Re8 {[%emt 0:03:08]} 21. Qxf7+ {
[%emt 0:00:18]} Kxf7 {[%emt 0:00:04]} 22. Rac1 {[%emt 0:02:35]} Re5 {[%emt 0:
00:00]} 23. Rxc7 {[%emt 0:00:20]} Rxd5 {[%emt 0:00:28]} 24. Rxb7 {[%emt 0:00:
00]} Kg8 {[%emt 0:04:44]} 25. Nc3 {[%emt 0:00:22]} Rd4 {[%emt 0:01:47]} 26. Rd1
{[%emt 0:00:48]} Rxd1+ {[%emt 0:01:09]} 27. Nxd1 {[%emt 0:00:04]} Ne5 {[%emt 0:
00:00]} 28. Ne3 {[%emt 0:02:24]} Nf3+ {[%emt 0:01:49]} 29. Kf2 {[%emt 0:00:04]}
Nxh2 {[%emt 0:00:20]} 30. Rb4 {[%emt 0:02:05]} Rh5 {[%emt 0:01:03]} 31. Kg3 {
[%emt 0:00:26]} a5 {[%emt 0:01:10]} 32. Rh4 {[%emt 0:00:22]} Nf1+ {[%emt 0:00:
00]} 33. Nxf1 {[%emt 0:00:05]} Rxf5 {[%emt 0:00:03]} 34. Ne3 {[%emt 0:00:25]}
Rb5 {[%emt 0:00:19]} 35. b3 {[%emt 0:00:07]} g6 {[%emt 0:00:32]} 36. Ra4 {
[%emt 0:00:11]} Kg7 {[%emt 0:01:26]} 37. Nc4 {[%emt 0:00:15]} Rg5+ {[%emt 0:00:
00]} 38. Kf3 {[%emt 0:00:32]} Rf5+ {[%emt 0:00:25]} 39. Ke2 {[%emt 0:00:22]}
Rg5 {[%emt 0:00:11]} 40. Kf2 {[%emt 0:00:14]} Rf5+ {[%emt 0:00:07]} 41. Kg1 {
[%emt 0:30:06]} Kh6 {[%emt 0:31:34]} 42. Rxa5 {[%emt 0:00:19]} Rf6 {[%emt 0:00:
00]} 43. Rb5 {[%emt 0:00:33]} Ra6 {[%emt 0:01:42]} 44. a4 {[%emt 0:02:24]} 1-0

[Event "44th Chess Olympiad Women 2022"]
[Site "Chennai"]
[Date "2022.08.06"]
[Round "8.35"]
[White "Curwin, Nickaylah"]
[Black "Rovira Contreras, Tairu Manuela"]
[Result "0-1"]
[WhiteElo "1499"]
[BlackElo "2036"]
[Annotator "NA RC"]
[PlyCount "88"]
[EventDate "2022.??.??"]
[TimeControl "60"]

1. d4 {[%emt 0:00:04]} Nf6 {[%emt 0:00:34]} 2. Bf4 {[%emt 0:00:10]} g6 {
[%emt 0:00:09]} 3. Nc3 {[%emt 0:00:24]} Bg7 {[%emt 0:00:40]} 4. e4 {[%emt 0:00:
00]} d6 {[%emt 0:00:54]} 5. Qd2 {[%emt 0:01:03]} c6 {[%emt 0:02:41]} 6. Nf3 {
[%emt 0:01:37]} b5 {[%emt 0:04:00]} 7. Bd3 {[%emt 0:04:06]} O-O {[%emt 0:02:11]
} 8. Bh6 {[%emt 0:02:10]} Nbd7 {[%emt 0:04:18]} 9. h3 {[%emt 0:04:16]} e5 {
[%emt 0:02:13]} 10. g4 {[%emt 0:03:01]} Re8 {[%emt 0:01:56]} 11. Bxg7 {[%emt 0:
00:00]} Kxg7 {[%emt 0:02:06]} 12. dxe5 {[%emt 0:03:05]} dxe5 {[%emt 0:03:05]}
13. O-O-O {[%emt 0:02:24]} Nc5 {[%emt 0:03:58]} 14. Qe3 {[%emt 0:02:16]} Qb6 {
[%emt 0:01:20]} 15. Nd2 {[%emt 0:04:34]} Be6 {[%emt 0:07:53]} 16. Kb1 {[%emt 0:
00:00]} Rad8 {[%emt 0:00:44]} 17. Nb3 {[%emt 0:06:18]} Bxb3 {[%emt 0:18:13]}
18. cxb3 {[%emt 0:02:51]} Rd7 {[%emt 0:04:20]} 19. Bc2 {[%emt 0:06:42]} Red8 {
[%emt 0:00:39]} 20. Qg3 {[%emt 0:02:16]} Qc7 {[%emt 0:02:07]} 21. f3 {[%emt 0:
00:00]} Ne6 {[%emt 0:03:30]} 22. Rxd7 {[%emt 0:07:45]} Rxd7 {[%emt 0:00:58]}
23. Rd1 {[%emt 0:06:11]} Nf4 {[%emt 0:03:11]} 24. h4 {[%emt 0:02:10]} h5 {
[%emt 0:03:37]} 25. g5 {[%emt 0:00:31]} Rxd1+ {[%emt 0:00:29]} 26. Nxd1 {
[%emt 0:00:24]} Nd7 {[%emt 0:00:04]} 27. Qf2 {[%emt 0:01:04]} Nf8 {[%emt 0:00:
00]} 28. Nc3 {[%emt 0:03:54]} N8e6 {[%emt 0:02:20]} 29. Ne2 {[%emt 0:01:32]}
Nxe2 {[%emt 0:00:34]} 30. Qxe2 {[%emt 0:00:06]} Qb6 {[%emt 0:00:27]} 31. Qh2 {
[%emt 0:03:06]} Qd4 {[%emt 0:00:15]} 32. Qg3 {[%emt 0:02:27]} Nf4 {[%emt 0:00:
00]} 33. a3 {[%emt 0:02:41]} Ne2 {[%emt 0:08:30]} 34. Qe1 {[%emt 0:03:12]} Qg1
{[%emt 0:00:11]} 35. Qxg1 {[%emt 0:00:20]} Nxg1 {[%emt 0:00:04]} 36. Bd1 {
[%emt 0:00:12]} f6 {[%emt 0:00:13]} 37. Kc2 {[%emt 0:02:42]} fxg5 {[%emt 0:00:
00]} 38. hxg5 {[%emt 0:02:30]} h4 {[%emt 0:00:08]} 39. f4 {[%emt 0:00:57]} exf4
{[%emt 0:00:07]} 40. Bg4 {[%emt 0:00:22]} f3 {[%emt 0:01:31]} 41. Kd2 {[%emt 0:
00:00]} f2 {[%emt 0:30:23]} 42. Be2 {[%emt 0:00:50]} h3 {[%emt 0:00:06]} 43.
Bf1 {[%emt 0:00:48]} h2 {[%emt 0:00:19]} 44. Ke3 {[%emt 0:00:32]} h1=Q {
[%emt 0:00:14]} 0-1

[Event "44th Chess Olympiad Women 2022"]
[Site "Chennai"]
[Date "2022.08.06"]
[Round "8.35"]
[White "Miller, Rachel"]
[Black "Varela La Madrid, Tilsia Carolina"]
[Result "0-1"]
[WhiteElo "1961"]
[BlackElo "2079"]
[Annotator "NA RC"]
[PlyCount "60"]
[EventDate "2022.??.??"]
[TimeControl "60"]

1. e4 {[%emt 0:00:07]} e5 {[%emt 0:00:11]} 2. Nf3 {[%emt 0:00:15]} Nc6 {
[%emt 0:00:08]} 3. Bc4 {[%emt 0:00:15]} Bc5 {[%emt 0:00:15]} 4. c3 {[%emt 0:00:
00]} Nf6 {[%emt 0:00:08]} 5. d3 {[%emt 0:00:41]} a5 {[%emt 0:00:47]} 6. a4 {
[%emt 0:00:35]} d6 {[%emt 0:01:29]} 7. O-O {[%emt 0:03:33]} h6 {[%emt 0:00:26]}
8. Re1 {[%emt 0:02:04]} O-O {[%emt 0:00:33]} 9. Bb3 {[%emt 0:02:32]} Ba7 {
[%emt 0:00:24]} 10. h3 {[%emt 0:02:11]} Re8 {[%emt 0:06:20]} 11. Na3 {[%emt 0:
00:00]} Be6 {[%emt 0:04:50]} 12. Bc2 {[%emt 0:03:39]} d5 {[%emt 0:00:39]} 13.
Qe2 {[%emt 0:02:23]} Qd7 {[%emt 0:08:21]} 14. Bb1 {[%emt 0:17:35]} Rad8 {
[%emt 0:01:53]} 15. Nb5 {[%emt 0:06:09]} Bb6 {[%emt 0:01:58]} 16. Qc2 {[%emt 0:
00:00]} dxe4 {[%emt 0:15:58]} 17. dxe4 {[%emt 0:00:45]} Bxh3 {[%emt 0:01:25]}
18. gxh3 {[%emt 0:05:12]} Qxh3 {[%emt 0:00:29]} 19. Nh2 {[%emt 0:07:30]} Ng4 {
[%emt 0:05:36]} 20. Nxg4 {[%emt 0:01:11]} Qxg4+ {[%emt 0:00:05]} 21. Kf1 {
[%emt 0:01:01]} Re6 {[%emt 0:00:47]} 22. Nd4 {[%emt 0:25:24]} exd4 {[%emt 0:00:
00]} 23. f4 {[%emt 0:02:38]} d3 {[%emt 0:01:31]} 24. Qg2 {[%emt 0:00:25]} Qxg2+
{[%emt 0:00:25]} 25. Kxg2 {[%emt 0:00:05]} d2 {[%emt 0:00:06]} 26. Bxd2 {
[%emt 0:00:43]} Rxd2+ {[%emt 0:00:05]} 27. Kh3 {[%emt 0:00:11]} Bf2 {[%emt 0:
00:00]} 28. Rf1 {[%emt 0:00:20]} Rg6 {[%emt 0:00:49]} 29. Kh2 {[%emt 0:01:19]}
Be3+ {[%emt 0:00:24]} 30. Kh3 {[%emt 0:00:17]} Bg1 {[%emt 0:00:14]} 0-1

[Event "44th Chess Olympiad Women 2022"]
[Site "Chennai"]
[Date "2022.08.06"]
[Round "8.35"]
[White "Otazo Sanchez, Annyd Gabriela"]
[Black "Clarke, Adani"]
[Result "1-0"]
[WhiteElo "1932"]
[BlackElo "1812"]
[Annotator "NA RC"]
[PlyCount "99"]
[EventDate "2022.??.??"]
[TimeControl "60"]

1. e4 {[%emt 0:00:01]} e6 {[%emt 0:00:08]} 2. d3 {[%emt 0:00:06]} d5 {[%emt 0:
00:00]} 3. Nd2 {[%emt 0:00:04]} c5 {[%emt 0:00:25]} 4. Ngf3 {[%emt 0:00:04]}
Nc6 {[%emt 0:00:23]} 5. g3 {[%emt 0:00:15]} Nf6 {[%emt 0:00:24]} 6. Bg2 {
[%emt 0:00:04]} Be7 {[%emt 0:00:35]} 7. O-O {[%emt 0:00:07]} O-O {[%emt 0:00:
00]} 8. Re1 {[%emt 0:00:02]} b5 {[%emt 0:01:31]} 9. e5 {[%emt 0:00:17]} Nd7 {
[%emt 0:00:18]} 10. Nf1 {[%emt 0:00:05]} a5 {[%emt 0:00:34]} 11. h4 {[%emt 0:
00:00]} b4 {[%emt 0:01:09]} 12. Bf4 {[%emt 0:01:00]} Re8 {[%emt 0:00:57]} 13.
Ne3 {[%emt 0:00:33]} Bf8 {[%emt 0:02:38]} 14. h5 {[%emt 0:01:56]} h6 {[%emt 0:
00:00]} 15. Ng4 {[%emt 0:02:18]} Ne7 {[%emt 0:01:43]} 16. Nh4 {[%emt 0:10:53]}
Bb7 {[%emt 0:02:57]} 17. c4 {[%emt 0:26:45]} Nb6 {[%emt 0:08:14]} 18. b3 {
[%emt 0:15:09]} Bc6 {[%emt 0:08:56]} 19. Qc1 {[%emt 0:09:50]} dxc4 {[%emt 0:00:
00]} 20. Bxc6 {[%emt 0:06:32]} Nxc6 {[%emt 0:00:15]} 21. dxc4 {[%emt 0:00:12]}
Nd4 {[%emt 0:00:47]} 22. Bxh6 {[%emt 0:02:32]} Be7 {[%emt 0:12:19]} 23. Bxg7 {
[%emt 0:03:47]} Bg5 {[%emt 0:01:07]} 24. Nf6+ {[%emt 0:01:43]} Qxf6 {[%emt 0:
00:00]} 25. Bxf6 {[%emt 0:01:30]} Bxc1 {[%emt 0:00:10]} 26. Raxc1 {[%emt 0:00:
00]} Kh7 {[%emt 0:01:50]} 27. Kg2 {[%emt 0:01:43]} a4 {[%emt 0:03:15]} 28. Nf3
{[%emt 0:01:27]} Nxf3 {[%emt 0:01:08]} 29. Kxf3 {[%emt 0:00:11]} axb3 {[%emt 0:
00:00]} 30. axb3 {[%emt 0:00:04]} Ra3 {[%emt 0:00:29]} 31. Re3 {[%emt 0:00:20]}
Kh6 {[%emt 0:03:21]} 32. g4 {[%emt 0:00:11]} Nd7 {[%emt 0:00:53]} 33. g5+ {
[%emt 0:01:59]} Kh7 {[%emt 0:03:58]} 34. g6+ {[%emt 0:02:39]} fxg6 {[%emt 0:00:
00]} 35. hxg6+ {[%emt 0:00:05]} Kg8 {[%emt 0:02:47]} 36. Rh1 {[%emt 0:00:30]}
Nxf6 {[%emt 0:00:32]} 37. exf6 {[%emt 0:00:02]} Rf8 {[%emt 0:00:57]} 38. Rxe6 {
[%emt 0:01:09]} Rxb3+ {[%emt 0:01:27]} 39. Kg4 {[%emt 0:00:10]} Rd3 {[%emt 0:
00:00]} 40. f7+ {[%emt 0:00:18]} Rxf7 {[%emt 0:00:46]} 41. gxf7+ {[%emt 0:00:
00]} Kxf7 {[%emt 0:30:06]} 42. Rb6 {[%emt 0:00:26]} Kg7 {[%emt 0:01:51]} 43.
Ra1 {[%emt 0:00:24]} Rd7 {[%emt 0:01:07]} 44. f4 {[%emt 0:00:39]} Kf7 {[%emt 0:
00:00]} 45. f5 {[%emt 0:00:17]} Rd4+ {[%emt 0:01:00]} 46. Kg5 {[%emt 0:00:06]}
Rd7 {[%emt 0:00:23]} 47. Rh1 {[%emt 0:00:06]} Kg7 {[%emt 0:00:22]} 48. f6+ {
[%emt 0:00:04]} Kf7 {[%emt 0:00:10]} 49. Rh7+ {[%emt 0:00:08]} Ke8 {[%emt 0:00:
00]} 50. Rb8+ {[%emt 0:00:08]} 1-0

[Event "44th Chess Olympiad Women 2022"]
[Site "Chennai"]
[Date "2022.08.06"]
[Round "8.35"]
[White "Perez Hernandez, Vicmary C."]
[Black "Watson, Gabriella"]
[Result "1-0"]
[WhiteElo "1862"]
[BlackElo "1164"]
[Annotator "NA RC"]
[PlyCount "105"]
[EventDate "2022.??.??"]
[TimeControl "60"]

1. e4 {[%emt 0:00:43]} c6 {[%emt 0:00:07]} 2. d4 {[%emt 0:00:13]} d5 {[%emt 0:
00:00]} 3. Nc3 {[%emt 0:00:10]} dxe4 {[%emt 0:00:25]} 4. Nxe4 {[%emt 0:00:07]}
Bf5 {[%emt 0:00:16]} 5. Ng3 {[%emt 0:00:06]} Bg6 {[%emt 0:00:17]} 6. h4 {
[%emt 0:00:40]} h6 {[%emt 0:00:16]} 7. Nf3 {[%emt 0:00:13]} Nd7 {[%emt 0:00:58]
} 8. h5 {[%emt 0:00:13]} Bh7 {[%emt 0:00:17]} 9. Bd3 {[%emt 0:00:12]} Bxd3 {
[%emt 0:01:17]} 10. Qxd3 {[%emt 0:00:04]} Ngf6 {[%emt 0:01:43]} 11. Bd2 {
[%emt 0:03:23]} e6 {[%emt 0:01:49]} 12. O-O-O {[%emt 0:04:05]} Be7 {[%emt 0:00:
00]} 13. Qe2 {[%emt 0:01:41]} Qc7 {[%emt 0:06:12]} 14. Ne5 {[%emt 0:07:18]} O-O
{[%emt 0:07:10]} 15. f4 {[%emt 0:00:00]} c5 {[%emt 0:08:36]} 16. Nxd7 {[%emt 0:
00:00]} Nxd7 {[%emt 0:01:56]} 17. d5 {[%emt 0:01:54]} Qb6 {[%emt 0:18:50]} 18.
dxe6 {[%emt 0:11:11]} Bf6 {[%emt 0:09:59]} 19. exf7+ {[%emt 0:01:44]} Rxf7 {
[%emt 0:00:19]} 20. c3 {[%emt 0:00:19]} Kh8 {[%emt 0:02:38]} 21. Qc4 {[%emt 0:
00:00]} Re7 {[%emt 0:03:56]} 22. Rhe1 {[%emt 0:07:12]} Rae8 {[%emt 0:03:39]}
23. Nf5 {[%emt 0:02:52]} Re6 {[%emt 0:06:21]} 24. Re3 {[%emt 0:07:10]} Qc6 {
[%emt 0:03:55]} 25. Rxe6 {[%emt 0:06:44]} Rxe6 {[%emt 0:01:55]} 26. Be3 {
[%emt 0:01:20]} Nb6 {[%emt 0:08:14]} 27. Qxc5 {[%emt 0:01:14]} Qe8 {[%emt 0:00:
00]} 28. Rd6 {[%emt 0:08:34]} Rxd6 {[%emt 0:01:48]} 29. Nxd6 {[%emt 0:00:23]}
Qd7 {[%emt 0:01:43]} 30. Ne4 {[%emt 0:03:52]} Be7 {[%emt 0:00:58]} 31. Qd4 {
[%emt 0:00:25]} Qg4 {[%emt 0:00:44]} 32. Qe5 {[%emt 0:06:25]} Qd7 {[%emt 0:00:
00]} 33. Bd4 {[%emt 0:00:20]} Bf8 {[%emt 0:00:26]} 34. f5 {[%emt 0:02:51]} Nc4
{[%emt 0:00:25]} 35. Qf4 {[%emt 0:00:24]} Kh7 {[%emt 0:00:46]} 36. f6 {[%emt 0:
00:00]} Qb5 {[%emt 0:00:57]} 37. Qf2 {[%emt 0:00:09]} Qd5 {[%emt 0:00:19]} 38.
fxg7 {[%emt 0:00:38]} Bxg7 {[%emt 0:00:36]} 39. Nf6+ {[%emt 0:00:46]} Bxf6 {
[%emt 0:00:13]} 40. Qxf6 {[%emt 0:00:06]} Qg5+ {[%emt 0:00:29]} 41. Qxg5 {
[%emt 0:30:07]} hxg5 {[%emt 0:30:06]} 42. b3 {[%emt 0:00:41]} Nb6 {[%emt 0:00:
00]} 43. Bxb6 {[%emt 0:00:01]} axb6 {[%emt 0:00:07]} 44. c4 {[%emt 0:00:08]} g4
{[%emt 0:00:13]} 45. Kd2 {[%emt 0:00:17]} Kh6 {[%emt 0:00:12]} 46. Ke3 {
[%emt 0:00:17]} Kxh5 {[%emt 0:00:16]} 47. Kf4 {[%emt 0:00:06]} Kh4 {[%emt 0:00:
00]} 48. g3+ {[%emt 0:00:01]} Kh3 {[%emt 0:00:34]} 49. b4 {[%emt 0:00:02]} b5 {
[%emt 0:00:52]} 50. cxb5 {[%emt 0:00:23]} b6 {[%emt 0:00:10]} 51. a4 {[%emt 0:
00:00]} Kh2 {[%emt 0:00:11]} 52. a5 {[%emt 0:00:19]} bxa5 {[%emt 0:00:08]} 53.
bxa5 {[%emt 0:00:01]} 1-0

[Event "44th Chess Olympiad Women 2022"]
[Site "Chennai"]
[Date "2022.08.06"]
[Round "8.36"]
[White "Al Maamari, Wafia Darwish"]
[Black "Richards, Heather S"]
[Result "1/2-1/2"]
[WhiteElo "1841"]
[BlackElo "2146"]
[Annotator "NA RC"]
[PlyCount "108"]
[EventDate "2022.??.??"]
[TimeControl "60"]

1. e4 {[%emt 0:00:03]} e6 {[%emt 0:00:04]} 2. d4 {[%emt 0:00:06]} d5 {[%emt 0:
00:00]} 3. exd5 {[%emt 0:00:06]} exd5 {[%emt 0:00:04]} 4. Nf3 {[%emt 0:00:09]}
Bd6 {[%emt 0:00:57]} 5. c4 {[%emt 0:00:28]} Qe7+ {[%emt 0:16:48]} 6. Qe2 {
[%emt 0:02:22]} dxc4 {[%emt 0:00:29]} 7. Qxe7+ {[%emt 0:00:23]} Nxe7 {[%emt 0:
00:00]} 8. Bxc4 {[%emt 0:00:23]} Nbc6 {[%emt 0:00:34]} 9. Be3 {[%emt 0:07:20]}
Nb4 {[%emt 0:03:58]} 10. Kd2 {[%emt 0:05:10]} c6 {[%emt 0:04:56]} 11. Nc3 {
[%emt 0:06:06]} O-O {[%emt 0:01:42]} 12. Ne4 {[%emt 0:03:46]} Bc7 {[%emt 0:00:
00]} 13. a3 {[%emt 0:11:08]} Nbd5 {[%emt 0:00:07]} 14. Nc3 {[%emt 0:01:08]} Be6
{[%emt 0:04:11]} 15. Nxd5 {[%emt 0:03:06]} Nxd5 {[%emt 0:00:47]} 16. Rac1 {
[%emt 0:07:22]} h6 {[%emt 0:01:02]} 17. Ne5 {[%emt 0:05:51]} Rad8 {[%emt 0:00:
00]} 18. Nd3 {[%emt 0:07:16]} b5 {[%emt 0:00:17]} 19. Bxd5 {[%emt 0:00:36]}
Bxd5 {[%emt 0:00:06]} 20. f3 {[%emt 0:07:39]} a5 {[%emt 0:01:12]} 21. b4 {
[%emt 0:06:50]} Ra8 {[%emt 0:03:35]} 22. Ra1 {[%emt 0:00:32]} Bd6 {[%emt 0:00:
00]} 23. h3 {[%emt 0:03:01]} Bc4 {[%emt 0:00:48]} 24. Nc5 {[%emt 0:01:31]} Rfe8
{[%emt 0:01:24]} 25. Nb7 {[%emt 0:09:27]} Bc7 {[%emt 0:00:10]} 26. Rhe1 {
[%emt 0:01:27]} axb4 {[%emt 0:03:45]} 27. axb4 {[%emt 0:00:17]} f5 {[%emt 0:00:
00]} 28. f4 {[%emt 0:02:40]} g5 {[%emt 0:04:47]} 29. g3 {[%emt 0:00:26]} gxf4 {
[%emt 0:00:05]} 30. Bxf4 {[%emt 0:02:16]} Rxa1 {[%emt 0:08:07]} 31. Rxe8+ {
[%emt 0:01:50]} Kf7 {[%emt 0:00:05]} 32. Rc8 {[%emt 0:01:31]} Bxf4+ {[%emt 0:
00:00]} 33. gxf4 {[%emt 0:00:05]} Ra2+ {[%emt 0:01:21]} 34. Kc1 {[%emt 0:02:02]
} Bd5 {[%emt 0:01:09]} 35. Rc7+ {[%emt 0:01:24]} Kg6 {[%emt 0:00:25]} 36. Na5 {
[%emt 0:01:05]} Ra3 {[%emt 0:01:12]} 37. Kd2 {[%emt 0:00:46]} Rxh3 {[%emt 0:00:
00]} 38. Nxc6 {[%emt 0:00:12]} Be4 {[%emt 0:00:10]} 39. Ne5+ {[%emt 0:00:44]}
Kf6 {[%emt 0:01:30]} 40. Rc5 {[%emt 0:00:30]} Rh2+ {[%emt 0:03:49]} 41. Ke3 {
[%emt 0:30:21]} Rh3+ {[%emt 0:33:38]} 42. Kd2 {[%emt 0:00:00]} Rh2+ {[%emt 0:
00:00]} 43. Ke3 {[%emt 0:00:00]} Ke6 {[%emt 0:00:00]} 44. Rxb5 {[%emt 0:00:00]}
h5 {[%emt 0:00:00]} 45. Rb6+ {[%emt 0:00:00]} Kd5 {[%emt 0:00:00]} 46. Rb5+ {
[%emt 0:00:00]} Kd6 {[%emt 0:00:00]} 47. Nf7+ {[%emt 0:00:00]} Kd7 {[%emt 0:00:
00]} 48. Ng5 {[%emt 0:00:00]} h4 {[%emt 0:00:00]} 49. Nxe4 {[%emt 0:00:00]}
Rh3+ {[%emt 0:00:00]} 50. Kf2 {[%emt 0:00:00]} fxe4 {[%emt 0:00:00]} 51. Re5 {
[%emt 0:00:00]} Rf3+ {[%emt 0:00:00]} 52. Kg2 {[%emt 0:00:00]} Rxf4 {[%emt 0:
00:00]} 53. Kh3 {[%emt 0:00:00]} e3 {[%emt 0:00:00]} 54. Rxe3 {[%emt 0:00:00]}
Rxd4 {[%emt 0:00:00]} 1/2-1/2

[Event "44th Chess Olympiad Women 2022"]
[Site "Chennai"]
[Date "2022.08.06"]
[Round "8.36"]
[White "Phan, Nguyen Mai Chi"]
[Black "Almaini, Aishah Sarhan"]
[Result "1-0"]
[WhiteElo "2139"]
[BlackElo "1615"]
[Annotator "NA RC"]
[PlyCount "43"]
[EventDate "2022.??.??"]
[TimeControl "60"]

1. Nf3 {[%emt 0:00:05]} Nf6 {[%emt 0:00:13]} 2. d4 {[%emt 0:00:11]} g6 {
[%emt 0:00:10]} 3. c4 {[%emt 0:01:05]} Bg7 {[%emt 0:00:19]} 4. Nc3 {[%emt 0:00:
00]} d6 {[%emt 0:02:19]} 5. e4 {[%emt 0:00:28]} O-O {[%emt 0:01:56]} 6. Be2 {
[%emt 0:00:14]} e5 {[%emt 0:07:45]} 7. O-O {[%emt 0:01:33]} exd4 {[%emt 0:00:
00]} 8. Nxd4 {[%emt 0:00:52]} Nc6 {[%emt 0:00:07]} 9. Nc2 {[%emt 0:13:22]} Re8
{[%emt 0:04:29]} 10. f3 {[%emt 0:00:34]} Nh5 {[%emt 0:09:28]} 11. Nd5 {[%emt 0:
00:00]} Qh4 {[%emt 0:23:32]} 12. Qe1 {[%emt 0:27:40]} Qd8 {[%emt 0:02:23]} 13.
Qf2 {[%emt 0:03:32]} f5 {[%emt 0:11:42]} 14. g4 {[%emt 0:08:45]} fxg4 {[%emt 0:
00:00]} 15. fxg4 {[%emt 0:00:21]} Rf8 {[%emt 0:00:08]} 16. Qg2 {[%emt 0:02:42]}
Rxf1+ {[%emt 0:03:06]} 17. Qxf1 {[%emt 0:12:09]} Nf6 {[%emt 0:00:18]} 18. Bg5 {
[%emt 0:00:42]} Qe8 {[%emt 0:18:35]} 19. Nxf6+ {[%emt 0:05:02]} Bxf6 {[%emt 0:
00:00]} 20. Qxf6 {[%emt 0:00:15]} Qxe4 {[%emt 0:00:52]} 21. Rf1 {[%emt 0:00:30]
} Bxg4 {[%emt 0:00:30]} 22. Qf7+ {[%emt 0:00:05]} 1-0